[Event "NOR-ch Various 2019"]
[Site "Larvik"]
[Date "2019.07.13"]
[Round "9.21"]
[White "Sebastian, Andreas"]
[Black "Opseth, Oliver"]
[Result "1-0"]
[ECO "A23"]
[WhiteElo "1911"]
[BlackElo "1714"]
[Annotator "NA"]
[PlyCount "85"]
[EventDate "2019.07.06"]
[EventType "swiss"]
[EventCountry "NOR"]
[SourceTitle "playchess.com"]
[Source "ChessBase"]
[SourceQuality "1"]
[TimeControl "40/5400+30:1800+30"]

1. c4 {[%emt 0:00:00]} e5 {[%emt 0:00:28]} 2. Nc3 {[%emt 0:00:12]} Nf6 {[%emt 0:00:27]} 3. g3 {[%emt 0:00:11]} Bc5 {[%emt 0:02:24]} 4. Bg2 {[%emt 0:00:10]} c6 {[%emt 0:00:52]} 5. e3 {[%emt 0:00:42]} d5 {[%emt 0:01:37]} 6. cxd5 {[%emt 0:03:00]} cxd5 {[%emt 0:01:16]} 7. d4 {[%emt 0:00:52]} exd4 {[%emt 0:00:59]} 8. exd4 {[%emt 0:00:09]} Bb4 {[%emt 0:03:51]} 9. Nge2 {[%emt 0:00:13]} Ne4 {[%emt 0:08:30]} 10. O-O {[%emt 0:00:34]} Bf5 {[%emt 0:07:23]} 11. Qb3 {[%emt 0:06:23]} Nc6 {[%emt 0:07:53]} 12. Qxd5 {[%emt 0:06:05]} Qxd5 {[%emt 0:00:32]} 13. Nxd5 {[%emt 0:00:12]} Bd6 {[%emt 0:00:04]} 14. Nec3 {[%emt 0:00:20]} Nxc3 {[%emt 0:01:19]} 15. bxc3 {[%emt 0:00:36]} O-O {[%emt 0:00:49]} 16. Bf4 {[%emt 0:00:23]} Ba3 {[%emt 0:01:33]} 17. Rfe1 {[%emt 0:03:59]} h6 {[%emt 0:03:44]} 18. Ne3 {[%emt 0:01:26]} Bg6 {[%emt 0:00:42]} 19. Nc4 {[%emt 0:00:15]} Be7 {[%emt 0:00:31]} 20. Bxc6 {[%emt 0:00:22]} bxc6 {[%emt 0:00:14]} 21. Rxe7 {[%emt 0:00:05]} a5 {[%emt 0:00:27]} 22. Rae1 {[%emt 0:00:29]} Bd3 {[%emt 0:00:24]} 23. Ne5 {[%emt 0:00:08]} Bb5 {[%emt 0:00:09]} 24. Nd7 {[%emt 0:00:14]} Rfd8 {[%emt 0:00:11]} 25. Nc5 {[%emt 0:00:29]} Bc4 {[%emt 0:00:48]} 26. a4 {[%emt 0:00:31]} Kh7 {[%emt 0:00:08]} 27. h4 {[%emt 0:00:47]} Rd5 {[%emt 0:00:26]} 28. f3 {[%emt 0:01:01]} Rc8 {[%emt 0:00:57]} 29. Kf2 {[%emt 0:00:12]} Ra8 {[%emt 0:00:14]} 30. g4 {[%emt 0:00:18]} Rdd8 {[%emt 0:00:30]} 31. Ne4 {[%emt 0:00:55]} Bb3 {[%emt 0:00:25]} 32. g5 {[%emt 0:00:21]} h5 {[%emt 0:00:27]} 33. Nc5 {[%emt 0:00:28]} Bd5 {[%emt 0:00:22]} 34. Rb7 {[%emt 0:00:39]} Bc4 {[%emt 0:00:24]} 35. Ree7 {[%emt 0:00:14]} Bd5 {[%emt 0:00:29]} 36. Be5 {[%emt 0:00:08]} Bc4 {[%emt 0:00:19]} 37. f4 {[%emt 0:00:21]} Bd5 {[%emt 0:00:11]} 38. f5 {[%emt 0:00:06]} Rg8 {[%emt 0:00:22]} 39. g6+ {[%emt 0:01:17]} fxg6 {[%emt 0:00:05]} 40. Rxg7+ {[%emt 0:00:11]} Rxg7 {[%emt 0:00:07]} 41. Rxg7+ {[%emt 0:30:08]} Kh6 {[%emt 0:30:01]} 42. f6 {[%emt 0:00:32]} g5 {[%emt 0:00:21]} 43. hxg5# {[%emt 0:00:13]} 1-0

[Event "NOR-ch Various 2019"]
[Site "Larvik"]
[Date "2019.07.13"]
[Round "9.22"]
[White "Austad, Eirik"]
[Black "Valvag, Torbjorn"]
[Result "1-0"]
[ECO "A27"]
[WhiteElo "1741"]
[BlackElo "1912"]
[Annotator "NA"]
[PlyCount "137"]
[EventDate "2019.07.06"]
[EventType "swiss"]
[EventCountry "NOR"]
[SourceTitle "playchess.com"]
[Source "ChessBase"]
[SourceQuality "1"]
[TimeControl "40/5400+30:1800+30"]

1. c4 {[%emt 0:00:00]} e5 {[%emt 0:00:00]} 2. Nc3 {[%emt 0:00:05]} Nc6 {[%emt 0:00:00]} 3. Nf3 {[%emt 0:00:05]} f5 {[%emt 0:00:00]} 4. d4 {[%emt 0:00:07]} e4 {[%emt 0:00:00]} 5. Ng5 {[%emt 0:00:07]} Bb4 {[%emt 0:07:08]} 6. Nh3 {[%emt 0:03:44]} Nf6 {[%emt 0:00:42]} 7. e3 {[%emt 0:02:39]} O-O {[%emt 0:02:57]} 8. Bd2 {[%emt 0:04:42]} d6 {[%emt 0:01:59]} 9. a3 {[%emt 0:06:31]} Bxc3 {[%emt 0:00:05]} 10. Bxc3 {[%emt 0:00:05]} Qe8 {[%emt 0:03:46]} 11. Nf4 {[%emt 0:04:42]} g5 {[%emt 0:03:34]} 12. Nh3 {[%emt 0:04:40]} h6 {[%emt 0:03:45]} 13. g3 {[%emt 0:05:33]} Kh7 {[%emt 0:17:13]} 14. Be2 {[%emt 0:06:38]} f4 {[%emt 0:01:15]} 15. Bf1 {[%emt 0:12:25]} Bg4 {[%emt 0:00:46]} 16. Qb3 {[%emt 0:07:57]} Rb8 {[%emt 0:03:07]} 17. Bg2 {[%emt 0:07:01]} Qh5 {[%emt 0:08:29]} 18. Ng1 {[%emt 0:02:19]} fxe3 {[%emt 0:00:28]} 19. fxe3 {[%emt 0:00:33]} Bf3 {[%emt 0:00:54]} 20. Bxf3 {[%emt 0:08:35]} exf3 {[%emt 0:02:01]} 21. Qc2+ {[%emt 0:02:51]} Kg7 {[%emt 0:00:45]} 22. O-O-O {[%emt 0:01:34]} f2 {[%emt 0:06:53]} 23. Ne2 {[%emt 0:05:40]} Qf3 {[%emt 0:00:26]} 24. d5 {[%emt 0:02:14]} Ne5 {[%emt 0:01:21]} 25. Nd4 {[%emt 0:00:55]} Qxe3+ {[%emt 0:00:24]} 26. Kb1 {[%emt 0:00:43]} Ne4 {[%emt 0:04:07]} 27. Ne6+ {[%emt 0:00:35]} Kg8 {[%emt 0:00:09]} 28. Bxe5 {[%emt 0:00:30]} dxe5 {[%emt 0:00:10]} 29. Nxf8 {[%emt 0:00:38]} Rxf8 {[%emt 0:00:04]} 30. Rhf1 {[%emt 0:00:31]} g4 {[%emt 0:06:23]} 31. Rd3 {[%emt 0:01:38]} Qg5 {[%emt 0:00:41]} 32. Rdd1 {[%emt 0:01:05]} Qf5 {[%emt 0:00:31]} 33. Ka1 {[%emt 0:00:29]} b6 {[%emt 0:06:31]} 34. Qd3 {[%emt 0:01:10]} Ng5 {[%emt 0:02:41]} 35. Qxf5 {[%emt 0:01:40]} Rxf5 {[%emt 0:00:04]} 36. Rd2 {[%emt 0:00:19]} Nh3 {[%emt 0:00:04]} 37. Re2 {[%emt 0:00:28]} Kf7 {[%emt 0:00:07]} 38. Kb1 {[%emt 0:00:26]} Kf6 {[%emt 0:00:16]} 39. Kc2 {[%emt 0:01:50]} Rf3 {[%emt 0:00:45]} 40. Kd2 {[%emt 0:01:08]} Rf5 {[%emt 0:06:19]} 41. Ke3 {[%emt 0:30:33]} Rf3+ {[%emt 0:30:59]} 42. Kd2 {[%emt 0:04:45]} h5 {[%emt 0:01:13]} 43. Re3 {[%emt 0:00:00]} Rf5 {[%emt 0:00:00]} 44. Ke2 {[%emt 0:00:00]} Kg5 {[%emt 0:00:00]} 45. b4 {[%emt 0:00:00]} Kf6 {[%emt 0:00:00]} 46. a4 {[%emt 0:00:00]} Ke7 {[%emt 0:00:00]} 47. c5 {[%emt 0:00:00]} a5 {[%emt 0:00:00]} 48. d6+ {[%emt 0:00:00]} Kd7 {[%emt 0:00:00]} 49. dxc7 {[%emt 0:00:00]} Ng1+ {[%emt 0:00:00]} 50. Kd2 {[%emt 0:00:00]} Nf3+ {[%emt 0:00:00]} 51. Rxf3 {[%emt 0:00:00]} Rxf3 {[%emt 0:00:00]} 52. cxb6 {[%emt 0:00:00]} axb4 {[%emt 0:00:00]} 53. a5 {[%emt 0:01:53]} Ra3 {[%emt 0:00:00]} 54. Rd1 {[%emt 0:00:56]} e4 {[%emt 0:00:00]} 55. Ke2+ {[%emt 0:00:57]} Rd3 {[%emt 0:00:00]} 56. Rc1 {[%emt 0:00:33]} Rc3 {[%emt 0:00:00]} 57. Rd1+ {[%emt 0:00:07]} Rd3 {[%emt 0:00:00]} 58. Rc1 {[%emt 0:00:32]} Rc3 {[%emt 0:00:00]} 59. Rd1+ {[%emt 0:01:07]} Ke7 {[%emt 0:01:10]} 60. b7 {[%emt 0:01:00]} Rc2+ {[%emt 0:00:03]} 61. Ke3 {[%emt 0:00:30]} Rc3+ {[%emt 0:00:09]} 62. Kf4 {[%emt 0:00:25]} Rd3 {[%emt 0:01:04]} 63. Rf1 {[%emt 0:01:12]} e3 {[%emt 0:00:21]} 64. b8=Q {[%emt 0:00:33]} e2 {[%emt 0:00:12]} 65. c8=Q {[%emt 0:00:36]} Rd4+ {[%emt 0:01:07]} 66. Kg5 {[%emt 0:00:19]} Rd5+ {[%emt 0:00:03]} 67. Kh4 {[%emt 0:00:23]} exf1=Q {[%emt 0:00:20]} 68. Qe8+ {[%emt 0:00:23]} Kf6 {[%emt 0:00:00]} 69. Qf4+ {[%emt 0:00:10]} 1-0

[Event "NOR-ch Various 2019"]
[Site "Larvik"]
[Date "2019.07.13"]
[Round "9.23"]
[White "Tunsjo, Axel"]
[Black "Aasen, Joakim"]
[Result "1-0"]
[ECO "B36"]
[WhiteElo "2039"]
[BlackElo "1718"]
[Annotator "NA"]
[PlyCount "111"]
[EventDate "2019.07.06"]
[EventType "swiss"]
[EventCountry "NOR"]
[SourceTitle "playchess.com"]
[Source "ChessBase"]
[SourceQuality "1"]
[TimeControl "40/5400+30:1800+30"]

1. e4 {[%emt 0:00:00]} c5 {[%emt 0:00:00]} 2. Nf3 {[%emt 0:00:00]} Nc6 {[%emt 0:00:22]} 3. d4 {[%emt 0:01:03]} cxd4 {[%emt 0:00:32]} 4. Nxd4 {[%emt 0:00:06]} g6 {[%emt 0:00:25]} 5. c4 {[%emt 0:00:13]} Nf6 {[%emt 0:00:48]} 6. Nc3 {[%emt 0:00:19]} d6 {[%emt 0:00:23]} 7. Be2 {[%emt 0:00:26]} Nxd4 {[%emt 0:00:22]} 8. Qxd4 {[%emt 0:00:08]} Bg7 {[%emt 0:00:58]} 9. Be3 {[%emt 0:00:16]} O-O {[%emt 0:00:20]} 10. Qd2 $11 {[%emt 0:01:30]} Be6 {[%emt 0:00:42]} 11. O-O {[%emt 0:00:44]} Qa5 {[%emt 0:00:25]} 12. Rab1 {[%emt 0:08:51]} Rfc8 {[%emt 0:02:45]} 13. b4 {[%emt 0:03:39]} Qc7 {[%emt 0:06:05]} 14. Rfc1 {[%emt 0:03:44]} Qd8 {[%emt 0:12:52]} 15. c5 {[%emt 0:11:39]} dxc5 {[%emt 0:04:02]} 16. Qxd8+ {[%emt 0:00:12]} Rxd8 {[%emt 0:00:10]} 17. bxc5 {[%emt 0:00:55]} b6 {[%emt 0:09:23]} 18. c6 {[%emt 0:02:06]} Rac8 {[%emt 0:03:27]} 19. Nb5 {[%emt 0:02:41]} Nxe4 {[%emt 0:09:43]} 20. Bf3 {[%emt 0:05:11]} Nd2 {[%emt 0:15:34]} 21. Bxd2 {[%emt 0:02:27]} Rxd2 {[%emt 0:01:12]} 22. c7 {[%emt 0:01:21]} Rxa2 {[%emt 0:04:11]} 23. Bb7 {[%emt 0:01:56]} Rf8 {[%emt 0:00:34]} 24. f4 {[%emt 0:31:31]} h5 {[%emt 0:03:18]} 25. Re1 {[%emt 0:02:45]} Kh7 {[%emt 0:05:22]} 26. Rbd1 {[%emt 0:04:05]} a5 {[%emt 0:03:14]} 27. Na7 {[%emt 0:03:54]} a4 {[%emt 0:01:02]} 28. Rxe6 {[%emt 0:01:01]} fxe6 {[%emt 0:00:09]} 29. Nc6 {[%emt 0:01:44]} a3 {[%emt 0:00:43]} 30. Rc1 {[%emt 0:02:35]} Rd2 {[%emt 0:00:32]} 31. Kf1 {[%emt 0:05:08]} a2 {[%emt 0:00:09]} 32. Ke1 {[%emt 0:00:03]} Rxg2 {[%emt 0:00:10]} 33. Kf1 {[%emt 0:01:35]} Rxh2 {[%emt 0:00:10]} 34. Nd8 {[%emt 0:00:08]} Rh1+ {[%emt 0:00:15]} 35. Bxh1 {[%emt 0:00:08]} Rxf4+ {[%emt 0:00:44]} 36. Ke2 {[%emt 0:00:16]} Rc4 {[%emt 0:00:49]} 37. Rxc4 {[%emt 0:00:34]} a1=Q {[%emt 0:00:09]} 38. c8=Q {[%emt 0:00:07]} Qxh1 {[%emt 0:00:24]} 39. Qxe6 {[%emt 0:02:12]} Qg2+ {[%emt 0:00:54]} 40. Kd3 {[%emt 0:01:40]} Qf3+ {[%emt 0:00:23]} 41. Kd2 {[%emt 0:04:44]} Qg2+ {[%emt 0:00:25]} 42. Qe2 {[%emt 0:13:16]} Qd5+ {[%emt 0:00:49]} 43. Qd3 {[%emt 0:00:27]} Qg2+ {[%emt 0:03:22]} 44. Kd1 {[%emt 0:00:48]} Qh1+ {[%emt 0:01:00]} 45. Kc2 {[%emt 0:00:08]} Qh2+ {[%emt 0:01:00]} 46. Qd2 {[%emt 0:00:14]} Qe5 {[%emt 0:00:38]} 47. Kb3 {[%emt 0:02:10]} b5 {[%emt 0:01:29]} 48. Rb4 {[%emt 0:01:01]} Qg3+ {[%emt 0:00:42]} 49. Ka2 {[%emt 0:01:19]} Qg1 {[%emt 0:02:04]} 50. Rxb5 {[%emt 0:01:35]} Qa1+ {[%emt 0:00:24]} 51. Kb3 {[%emt 0:00:04]} Qb1+ {[%emt 0:00:14]} 52. Kc4 {[%emt 0:01:17]} Qe4+ {[%emt 0:00:25]} 53. Kc5 {[%emt 0:00:16]} e6 {[%emt 0:02:10]} 54. Qd6 {[%emt 0:01:14]} e5 {[%emt 0:01:29]} 55. Ne6 {[%emt 0:00:39]} h4 {[%emt 0:00:20]} 56. Ng5+ {[%emt 0:00:04]} 1-0

[Event "NOR-ch Various 2019"]
[Site "Larvik"]
[Date "2019.07.13"]
[Round "9.24"]
[White "Brattgjerd, Isak Vinh"]
[Black "Stromhaug, Kristoffer Wang"]
[Result "1/2-1/2"]
[ECO "D00"]
[WhiteElo "1571"]
[BlackElo "1566"]
[Annotator "NA"]
[PlyCount "52"]
[EventDate "2019.07.06"]
[EventType "swiss"]
[EventCountry "NOR"]
[SourceTitle "playchess.com"]
[Source "ChessBase"]
[SourceQuality "1"]
[TimeControl "40/5400+30:1800+30"]

1. d4 {[%emt 0:00:22]} d5 {[%emt 0:00:11]} 2. Bf4 {[%emt 0:01:13]} Bf5 {[%emt 0:00:46]} 3. e3 {[%emt 0:00:08]} e6 {[%emt 0:00:40]} 4. Bd3 {[%emt 0:00:09]} Bg6 {[%emt 0:00:30]} 5. Nf3 {[%emt 0:01:06]} c5 {[%emt 0:00:37]} 6. c3 {[%emt 0:01:09]} Nf6 {[%emt 0:00:57]} 7. O-O {[%emt 0:01:55]} Nc6 {[%emt 0:01:40]} 8. Bxg6 {[%emt 0:02:12]} hxg6 {[%emt 0:00:18]} 9. Nbd2 {[%emt 0:00:53]} a6 {[%emt 0:04:22]} 10. c4 {[%emt 0:04:53]} cxd4 {[%emt 0:02:43]} 11. exd4 {[%emt 0:00:19]} Bd6 {[%emt 0:00:54]} 12. Bg3 {[%emt 0:03:44]} Bxg3 {[%emt 0:03:32]} 13. hxg3 {[%emt 0:01:00]} dxc4 {[%emt 0:06:04]} 14. Nxc4 {[%emt 0:00:19]} b5 {[%emt 0:00:14]} 15. Nce5 {[%emt 0:01:22]} Nxe5 {[%emt 0:00:25]} 16. dxe5 {[%emt 0:00:52]} Nd5 {[%emt 0:00:16]} 17. Rc1 {[%emt 0:00:12]} O-O {[%emt 0:01:17]} 18. Qe2 {[%emt 0:01:05]} Qb6 {[%emt 0:01:07]} 19. Rfd1 {[%emt 0:04:23]} Rac8 {[%emt 0:02:54]} 20. Qe4 {[%emt 0:09:30]} Ne7 {[%emt 0:12:21]} 21. Ng5 {[%emt 0:04:52]} Nf5 {[%emt 0:02:20]} 22. g4 {[%emt 0:11:44]} Nh6 {[%emt 0:04:18]} 23. Rxc8 {[%emt 0:03:56]} Rxc8 {[%emt 0:00:07]} 24. g3 {[%emt 0:00:44]} Qc7 {[%emt 0:05:32]} 25. Qd4 {[%emt 0:04:02]} Qe7 {[%emt 0:02:07]} 26. Qf4 {[%emt 0:11:36]} Rc4 {[%emt 0:08:19]} 1/2-1/2

[Event "NOR-ch Various 2019"]
[Site "Larvik"]
[Date "2019.07.13"]
[Round "9.25"]
[White "Haug, Havard"]
[Black "Helliesen, Lykke-Merlot"]
[Result "1-0"]
[ECO "C54"]
[WhiteElo "1483"]
[BlackElo "1505"]
[Annotator "NA"]
[PlyCount "105"]
[EventDate "2019.07.06"]
[EventType "swiss"]
[EventCountry "NOR"]
[SourceTitle "playchess.com"]
[Source "ChessBase"]
[SourceQuality "1"]
[TimeControl "40/5400+30:1800+30"]

1. e4 {[%emt 0:00:00]} e5 {[%emt 0:00:00]} 2. Nf3 {[%emt 0:00:00]} Nc6 {[%emt 0:00:00]} 3. Bc4 {[%emt 0:00:27]} Bc5 {[%emt 0:00:03]} 4. O-O {[%emt 0:00:00]} Nf6 {[%emt 0:00:27]} 5. d3 {[%emt 0:00:43]} d6 {[%emt 0:01:12]} 6. c3 {[%emt 0:01:03]} Bg4 {[%emt 0:00:49]} 7. Re1 {[%emt 0:01:13]} h6 {[%emt 0:03:33]} 8. Nbd2 {[%emt 0:03:04]} Qd7 {[%emt 0:04:45]} 9. Nf1 {[%emt 0:00:58]} Bb6 {[%emt 0:05:05]} 10. h3 {[%emt 0:01:25]} Bh5 {[%emt 0:03:44]} 11. Ng3 {[%emt 0:00:42]} Bg6 {[%emt 0:02:02]} 12. Nh4 {[%emt 0:01:49]} Bh7 {[%emt 0:09:33]} 13. Nhf5 {[%emt 0:01:21]} Bxf5 {[%emt 0:06:34]} 14. Nxf5 {[%emt 0:04:27]} O-O-O {[%emt 0:08:31]} 15. Nxg7 {[%emt 0:01:04]} Rdg8 {[%emt 0:01:17]} 16. Nf5 {[%emt 0:03:11]} d5 {[%emt 0:04:01]} 17. Bb3 {[%emt 0:02:03]} Rg6 {[%emt 0:15:38]} 18. Be3 {[%emt 0:01:48]} Rhg8 {[%emt 0:16:30]} 19. Ng3 {[%emt 0:01:22]} d4 {[%emt 0:01:00]} 20. cxd4 {[%emt 0:01:10]} Nxd4 {[%emt 0:00:48]} 21. Kh1 {[%emt 0:01:56]} h5 {[%emt 0:02:12]} 22. Rg1 {[%emt 0:03:48]} h4 {[%emt 0:01:17]} 23. Nf5 {[%emt 0:04:29]} Rh8 {[%emt 0:07:15]} 24. Rc1 {[%emt 0:03:12]} Nxf5 {[%emt 0:01:55]} 25. exf5 {[%emt 0:03:20]} Qxf5 {[%emt 0:00:48]} 26. Qc2 {[%emt 0:00:43]} Rg3 {[%emt 0:03:22]} 27. Kh2 {[%emt 0:01:12]} Rxe3 {[%emt 0:00:36]} 28. fxe3 {[%emt 0:00:13]} c6 {[%emt 0:00:31]} 29. Rcf1 {[%emt 0:00:38]} Qg5 {[%emt 0:00:23]} 30. Qf2 {[%emt 0:00:58]} Bxe3 {[%emt 0:00:32]} 31. Qxf6 {[%emt 0:00:08]} Bf4+ {[%emt 0:00:06]} 32. Rxf4 {[%emt 0:00:23]} Qxf4+ {[%emt 0:00:29]} 33. Qxf4 {[%emt 0:00:09]} exf4 {[%emt 0:00:04]} 34. Bxf7 {[%emt 0:00:38]} Rf8 {[%emt 0:00:09]} 35. Bh5 {[%emt 0:00:14]} Kd7 {[%emt 0:00:32]} 36. Re1 {[%emt 0:00:11]} Kd6 {[%emt 0:00:04]} 37. Re4 {[%emt 0:00:25]} Rf5 {[%emt 0:00:40]} 38. Bf3 {[%emt 0:00:35]} c5 {[%emt 0:01:32]} 39. Ra4 {[%emt 0:00:26]} b5 {[%emt 0:00:39]} 40. Rxa7 {[%emt 0:00:19]} b4 {[%emt 0:00:46]} 41. Rh7 {[%emt 0:30:43]} Ke5 {[%emt 0:30:34]} 42. Rh5 {[%emt 0:00:08]} Rxh5 {[%emt 0:00:12]} 43. Bxh5 {[%emt 0:00:10]} Kd4 {[%emt 0:00:07]} 44. a3 {[%emt 0:00:17]} bxa3 {[%emt 0:00:31]} 45. bxa3 {[%emt 0:00:09]} Kxd3 {[%emt 0:00:06]} 46. a4 {[%emt 0:00:22]} Kc4 {[%emt 0:00:20]} 47. Kg1 {[%emt 0:00:10]} Kb4 {[%emt 0:00:22]} 48. Bd1 {[%emt 0:00:05]} c4 {[%emt 0:00:32]} 49. Kf2 {[%emt 0:00:05]} c3 {[%emt 0:01:39]} 50. Kf3 {[%emt 0:00:04]} Kc4 {[%emt 0:00:07]} 51. Kxf4 {[%emt 0:00:09]} Kd3 {[%emt 0:00:34]} 52. a5 {[%emt 0:00:07]} Kd2 {[%emt 0:00:04]} 53. Bb3 {[%emt 0:01:03]} 1-0

[Event "NOR-ch Various 2019"]
[Site "Larvik"]
[Date "2019.07.13"]
[Round "9.26"]
[White "Oye-Stromberg, Alexander"]
[Black "Grave, Jacob Templen"]
[Result "1-0"]
[ECO "B12"]
[WhiteElo "1943"]
[BlackElo "1800"]
[Annotator "NA"]
[PlyCount "65"]
[EventDate "2019.07.06"]
[EventType "swiss"]
[EventCountry "NOR"]
[SourceTitle "playchess.com"]
[Source "ChessBase"]
[SourceQuality "1"]
[TimeControl "40/5400+30:1800+30"]

1. e4 {[%emt 0:00:00]} c6 {[%emt 0:00:00]} 2. d4 {[%emt 0:00:00]} d5 {[%emt 0:00:00]} 3. e5 {[%emt 0:00:00]} Bf5 {[%emt 0:00:00]} 4. h4 {[%emt 0:00:20]} h5 {[%emt 0:00:00]} 5. Bd3 {[%emt 0:00:16]} Bxd3 {[%emt 0:00:31]} 6. Qxd3 {[%emt 0:00:13]} e6 {[%emt 0:00:27]} 7. Bg5 {[%emt 0:00:40]} Qb6 {[%emt 0:04:46]} 8. Nd2 {[%emt 0:02:22]} c5 {[%emt 0:02:58]} 9. c3 {[%emt 0:05:32]} Nc6 {[%emt 0:01:46]} 10. Ne2 {[%emt 0:02:15]} Nge7 {[%emt 0:03:08]} 11. O-O {[%emt 0:06:47]} Nf5 {[%emt 0:02:47]} 12. Nf3 {[%emt 0:01:10]} Be7 {[%emt 0:06:18]} 13. Bxe7 {[%emt 0:07:37]} Ncxe7 {[%emt 0:01:14]} 14. Qd2 {[%emt 0:27:00]} O-O {[%emt 0:08:25]} 15. dxc5 {[%emt 0:14:52]} Qxc5 {[%emt 0:00:37]} 16. Qg5 {[%emt 0:00:14]} g6 {[%emt 0:09:56]} 17. Nf4 {[%emt 0:00:49]} Ng7 {[%emt 0:01:15]} 18. Nd4 {[%emt 0:01:54]} Nc6 {[%emt 0:04:09]} 19. Nxc6 {[%emt 0:18:57]} bxc6 {[%emt 0:05:29]} 20. g4 {[%emt 0:00:52]} Kh7 {[%emt 0:07:48]} 21. gxh5 {[%emt 0:00:32]} Nxh5 {[%emt 0:00:09]} 22. Nxh5 {[%emt 0:00:17]} gxh5 {[%emt 0:00:05]} 23. Qxh5+ {[%emt 0:00:16]} Kg7 {[%emt 0:00:12]} 24. Qg5+ {[%emt 0:00:42]} Kh7 {[%emt 0:00:10]} 25. Kh1 {[%emt 0:02:13]} Rfb8 {[%emt 0:00:47]} 26. Rg1 {[%emt 0:00:33]} Qf8 {[%emt 0:00:06]} 27. Qh5+ {[%emt 0:03:57]} Qh6 {[%emt 0:00:05]} 28. Qxf7+ {[%emt 0:01:15]} Kh8 {[%emt 0:00:07]} 29. h5 {[%emt 0:02:07]} Rxb2 {[%emt 0:03:45]} 30. Rg6 {[%emt 0:00:33]} Qxh5+ {[%emt 0:01:07]} 31. Kg2 {[%emt 0:00:15]} Rxf2+ {[%emt 0:02:03]} 32. Kxf2 {[%emt 0:00:44]} Qh4+ {[%emt 0:01:16]} 33. Kg1 {[%emt 0:00:28]} 1-0

[Event "NOR-ch Various 2019"]
[Site "Larvik"]
[Date "2019.07.13"]
[Round "9.27"]
[White "Fuglestein, Sander"]
[Black "Dahl, Max"]
[Result "1/2-1/2"]
[ECO "E09"]
[WhiteElo "1997"]
[BlackElo "1981"]
[Annotator "NA"]
[PlyCount "120"]
[EventDate "2019.07.06"]
[EventType "swiss"]
[EventCountry "NOR"]
[SourceTitle "playchess.com"]
[Source "ChessBase"]
[SourceQuality "1"]
[TimeControl "40/5400+30:1800+30"]

1. d4 {[%emt 0:00:14]} d5 {[%emt 0:01:06]} 2. c4 {[%emt 0:00:06]} c6 {[%emt 0:00:09]} 3. Nf3 {[%emt 0:00:21]} e6 {[%emt 0:00:11]} 4. g3 {[%emt 0:00:20]} Nf6 {[%emt 0:00:26]} 5. Bg2 {[%emt 0:00:03]} Be7 {[%emt 0:02:30]} 6. O-O {[%emt 0:00:21]} O-O {[%emt 0:00:24]} 7. Qc2 {[%emt 0:00:03]} Nbd7 {[%emt 0:07:35]} 8. Nbd2 {[%emt 0:02:42]} b6 {[%emt 0:09:47]} 9. Rd1 {[%emt 0:01:31]} Bb7 {[%emt 0:01:51]} 10. e4 {[%emt 0:02:03]} dxe4 {[%emt 0:00:41]} 11. Nxe4 {[%emt 0:00:06]} Nxe4 {[%emt 0:02:04]} 12. Qxe4 {[%emt 0:00:59]} Nf6 {[%emt 0:01:25]} 13. Qe2 {[%emt 0:01:08]} Qc8 {[%emt 0:09:31]} 14. b3 {[%emt 0:04:47]} Re8 {[%emt 0:06:48]} 15. Bb2 {[%emt 0:06:21]} c5 {[%emt 0:02:46]} 16. Rac1 {[%emt 0:01:19]} cxd4 {[%emt 0:02:40]} 17. Nxd4 {[%emt 0:01:28]} Bxg2 {[%emt 0:00:38]} 18. Kxg2 {[%emt 0:00:03]} Qb7+ {[%emt 0:07:48]} 19. Qf3 {[%emt 0:01:05]} Qxf3+ {[%emt 0:01:26]} 20. Kxf3 {[%emt 0:00:47]} a6 {[%emt 0:07:30]} 21. Nc6 {[%emt 0:02:38]} Bf8 {[%emt 0:06:28]} 22. g4 {[%emt 0:10:02]} Rac8 {[%emt 0:01:49]} 23. Ne5 {[%emt 0:01:38]} h6 {[%emt 0:07:01]} 24. h4 {[%emt 0:02:21]} g5 {[%emt 0:03:32]} 25. hxg5 {[%emt 0:07:23]} hxg5 {[%emt 0:00:08]} 26. Bd4 {[%emt 0:07:51]} Bc5 {[%emt 0:01:56]} 27. Bc3 {[%emt 0:01:57]} Be7 {[%emt 0:01:47]} 28. Bd2 {[%emt 0:12:54]} Nh7 {[%emt 0:01:07]} 29. Be3 {[%emt 0:01:16]} Bc5 {[%emt 0:02:05]} 30. Rd7 {[%emt 0:03:04]} Bxe3 {[%emt 0:02:09]} 31. fxe3 {[%emt 0:01:06]} Rc5 {[%emt 0:02:58]} 32. Nd3 {[%emt 0:01:35]} Rcc8 {[%emt 0:00:37]} 33. c5 {[%emt 0:05:27]} bxc5 {[%emt 0:00:55]} 34. Rxc5 {[%emt 0:00:47]} Rxc5 {[%emt 0:03:17]} 35. Nxc5 {[%emt 0:00:01]} Ra8 {[%emt 0:01:24]} 36. Rd6 {[%emt 0:02:11]} a5 {[%emt 0:00:13]} 37. Ra6 {[%emt 0:02:49]} Rxa6 {[%emt 0:00:26]} 38. Nxa6 {[%emt 0:00:01]} f5 {[%emt 0:00:58]} 39. Nc5 {[%emt 0:00:42]} Kf7 {[%emt 0:00:15]} 40. Nb7 {[%emt 0:07:53]} Nf6 {[%emt 0:01:15]} 41. gxf5 {[%emt 0:31:24]} exf5 {[%emt 0:31:16]} 42. Nxa5 {[%emt 0:04:01]} Kg6 {[%emt 0:00:00]} 43. Nc4 {[%emt 0:00:00]} g4+ {[%emt 0:00:00]} 44. Kg2 {[%emt 0:00:00]} Kg5 {[%emt 0:00:00]} 45. a4 {[%emt 0:00:00]} Nd5 {[%emt 0:00:00]} 46. a5 {[%emt 0:00:00]} Nb4 {[%emt 0:00:00]} 47. Kg3 {[%emt 0:00:00]} Kf6 {[%emt 0:00:00]} 48. Nb2 {[%emt 0:00:45]} Nc6 {[%emt 0:00:00]} 49. a6 {[%emt 0:03:04]} Ke5 {[%emt 0:00:00]} 50. b4 {[%emt 0:02:18]} Na7 {[%emt 0:00:00]} 51. Nd1 {[%emt 0:03:07]} Kd5 {[%emt 0:00:00]} 52. b5 {[%emt 0:01:24]} Nc8 {[%emt 0:00:00]} 53. Kf4 {[%emt 0:00:32]} Kc4 {[%emt 0:00:19]} 54. Nf2 {[%emt 0:00:20]} Kxb5 {[%emt 0:00:16]} 55. Kxf5 {[%emt 0:00:04]} g3 {[%emt 0:00:41]} 56. Nh3 {[%emt 0:00:03]} Kxa6 {[%emt 0:00:37]} 57. Kf4 {[%emt 0:00:08]} g2 {[%emt 0:00:16]} 58. Kg3 {[%emt 0:00:03]} Kb5 {[%emt 0:00:17]} 59. Kxg2 {[%emt 0:00:14]} Kc5 {[%emt 0:00:21]} 60. Kf3 {[%emt 0:00:05]} Kd6 {[%emt 0:00:24]} 1/2-1/2